fUST/lending_fUST_20250707
["ID","MTS","AMOUNT","RATE_DAILY","PERIOD"]
[369997853,1751817651551,363.08245281,0.00016735,2]
[369997859,1751817880279,317.6971462,0.00016734,2]
[369997862,1751817965227,439.88877134,0.00027397,120]
[369997866,1751818016191,657.92213,0.00013699,2]
[369997867,1751818111268,277.98500296,0.00016734,2]
[369997868,1751818148523,-156.62454596,0.00016831,2]
[369997870,1751818182925,24900.0,0.00015854,2]
[369997899,1751818232674,-1200.0,0.00016831,2]
[369997900,1751818232684,-460.0,0.00016832,2]
[369997901,1751818232694,-179.86660252,0.00016832,2]
[369997902,1751818232734,-280.13339748,0.00016832,2]
[369997903,1751818232743,-223.71254113,0.00016832,2]
[369997904,1751818232754,-58.34698119,0.00016832,2]
[369997905,1751818232765,-441.65301881,0.00016832,2]
[369997906,1751818232774,-204.72698119,0.00016832,2]
[369997907,1751818232794,-333.83027187,0.00016832,2]
[369997908,1751818232804,-500.0,0.00016832,2]
[369997909,1751818232813,-243.7198549,0.00016832,2]
[369997911,1751818232822,-83.59197163,0.00016832,2]
[369997921,1751818238663,-460.0,0.00016832,2]
[369997922,1751818238672,-292.63633506,0.00016832,2]
[369997923,1751818238681,-155.71301942,0.00016832,2]
[369997924,1751818238693,-333.22201401,0.00016832,2]
[369997925,1751818238702,-460.0,0.00016833,2]
[369997926,1751818238711,-460.0,0.00016833,2]
[369997927,1751818238720,-2046.08,0.00016833,2]
[369997928,1751818238729,-154.2271676,0.00016833,2]
[369997929,1751818238739,-2335.52,0.00016833,2]
[369997930,1751818238748,-460.0,0.00016833,2]
[369997931,1751818238758,-379.65316578,0.00016833,2]
[369997932,1751818238778,-80.34683422,0.00016833,2]
[369997933,1751818238787,-460.0,0.00016833,2]
[369997934,1751818238796,-460.0,0.00016833,2]
[369997936,1751818238806,-460.0,0.00016833,2]
[369997938,1751818238817,-1917.78,0.00016833,2]
[369997939,1751818238826,-184.55,0.00016833,2]
[369997940,1751818238836,-2260.09,0.00016833,2]
[369997942,1751818239028,-460.0,0.00016833,2]
[369997943,1751818239038,-2383.69,0.00016833,2]
[369997945,1751818239048,-460.0,0.00016833,2]
[369997946,1751818239058,-504.44109194,0.00016833,2]
[369997947,1751818239068,-460.0,0.00016833,2]
[369997948,1751818239077,-1158.0,0.00016833,2]
[369997949,1751818239087,-460.0,0.00016833,2]
[369997950,1751818239097,-1353.84,0.00016833,2]
[369997951,1751818239106,-460.0,0.00016833,2]
[369997952,1751818239116,-460.0,0.00016833,2]
[369997953,1751818239125,-460.0,0.00016833,2]
[369997954,1751818239135,-460.0,0.00016833,2]
[369997955,1751818239144,-1229.84,0.00016833,2]
[369997956,1751818239154,-460.0,0.00016833,2]
[369997957,1751818239164,-460.0,0.00016834,2]
[369997958,1751818239173,-467.80571061,0.00016834,2]
[369997959,1751818239182,-460.0,0.00016834,2]
[369997960,1751818239191,-460.0,0.00016834,2]
[369997961,1751818239202,-528.72074314,0.00016834,2]
[369997962,1751818239215,-460.0,0.00016834,2]
[369997963,1751818239224,-460.0,0.00016834,2]
[369997964,1751818239233,-460.0,0.00016834,2]
[369997965,1751818239244,-460.0,0.00016834,2]
[369997966,1751818239255,-460.0,0.00016834,2]
[369997967,1751818239264,-653.43,0.00016834,2]
[369997968,1751818239274,-460.0,0.00016834,2]
[369997969,1751818239285,-460.0,0.00016834,2]
[369997970,1751818239294,-384.40169004,0.00016834,2]
[369997971,1751818239304,-460.0,0.00016834,2]
[369997972,1751818239314,-460.0,0.00016834,2]
[369997973,1751818239323,-460.0,0.00016834,2]
[369997974,1751818239333,-460.0,0.00016834,2]
[369997975,1751818239343,-794.73,0.00016834,2]
[369997976,1751818239352,-483.25057906,0.00016834,2]
[369997977,1751818239362,-460.0,0.00016834,2]
[369997978,1751818239371,-485.05695505,0.00016834,2]
[369997979,1751818239381,-460.0,0.00016834,2]
[369997980,1751818239390,-460.0,0.00016834,2]
[369997981,1751818239399,-555.27234271,0.00016834,2]
[369997982,1751818239409,-460.0,0.00016834,2]
[369997983,1751818239418,-460.0,0.00016834,2]
[369997984,1751818239427,-460.0,0.00016834,2]
[369997985,1751818239437,-460.0,0.00016834,2]
[369997986,1751818239446,-460.0,0.00016834,2]
[369997987,1751818239455,-460.0,0.00016834,2]
[369997988,1751818239464,-428.68,0.00016834,2]
[369997989,1751818239474,-460.0,0.00016834,2]
[369997990,1751818239483,-460.0,0.00016834,2]
[369997991,1751818239492,-460.0,0.00016834,2]
[369997992,1751818239501,-460.0,0.00016834,2]
[369997993,1751818239511,-481.37233796,0.00016834,2]
[369997994,1751818239520,-460.0,0.00016834,2]
[369997995,1751818239530,-460.0,0.00016834,2]
[369997996,1751818239539,-460.0,0.00016834,2]
[369997997,1751818239548,-604.21,0.00016834,2]
[369997998,1751818239558,-460.0,0.00016834,2]
[369997999,1751818239568,-460.0,0.00016834,2]
[369998000,1751818239578,-460.0,0.00016834,2]
[369998001,1751818239587,-460.0,0.00016834,2]
[369998002,1751818239596,-460.0,0.00016834,2]
[369998003,1751818239606,-460.0,0.00016834,2]
[369998004,1751818239615,-460.0,0.00016834,2]
[369998005,1751818239624,-671.2,0.00016834,2]
[369998006,1751818239634,-460.0,0.00016834,2]
[369998007,1751818239643,-460.0,0.00016834,2]
[369998008,1751818239652,-460.0,0.00016834,2]
[369998009,1751818239662,-460.0,0.00016834,2]
[369998010,1751818239671,-495.92921136,0.00016834,2]
[369998011,1751818239680,-2700.77,0.00016834,2]
[369998012,1751818239690,-461.07000061,0.00016834,2]
[369998013,1751818239699,-589.78741999,0.00016834,2]
[369998014,1751818239709,-460.0,0.00016834,2]
[369998015,1751818239718,-460.0,0.00016834,2]
[369998016,1751818239728,-460.0,0.00016834,2]
[369998017,1751818239738,-597.43,0.00016834,2]
[369998018,1751818239747,-491.42533964,0.00016834,2]
[369998019,1751818239758,-460.0,0.00016834,2]
[369998020,1751818239769,-460.0,0.00016834,2]
[369998021,1751818239779,-460.0,0.00016834,2]
[369998022,1751818239789,-500.0,0.00016834,2]
[369998023,1751818239799,-460.0,0.00016834,2]
[369998024,1751818239808,-460.0,0.00016834,2]
[369998025,1751818239817,-691.73,0.00016834,2]
[369998026,1751818239827,-460.0,0.00016834,2]
[369998027,1751818239837,-400.0,0.00016834,2]
[369998028,1751818239846,-536.54,0.00016834,2]
[369998029,1751818239855,-460.0,0.00016834,2]
[369998030,1751818239864,-460.0,0.00016834,2]
[369998031,1751818239874,-473.74,0.00016834,2]
[369998032,1751818239883,-460.0,0.00016835,2]
[369998033,1751818239893,-460.0,0.00016835,2]
[369998034,1751818239902,-460.0,0.00016835,2]
[369998035,1751818239911,-460.0,0.00016835,2]
[369998036,1751818239921,-460.0,0.00016835,2]
[369998037,1751818239931,-460.0,0.00016835,2]
[369998038,1751818239940,-460.0,0.00016835,2]
[369998039,1751818239949,-460.0,0.00016835,2]
[369998040,1751818239959,-460.0,0.00016835,2]
[369998041,1751818239975,-639.53,0.00016835,2]
[369998042,1751818239984,-460.0,0.00016835,2]
[369998043,1751818239994,-611.51,0.00016835,2]
[369998044,1751818240003,-871.94,0.00016835,2]
[369998045,1751818240013,-464.47,0.00016835,2]
[369998046,1751818240022,-460.0,0.00016835,2]
[369998047,1751818240032,-672.91,0.00016835,2]
[369998048,1751818240042,-3370.47,0.00016835,2]
[369998049,1751818240053,-601.41,0.00016835,2]
[369998050,1751818240063,-864.26,0.00016835,2]
[369998051,1751818240072,-500.0,0.00016835,2]
[369998052,1751818240082,-933.26,0.00016835,2]
[369998053,1751818240091,-460.0,0.00016835,2]
[369998054,1751818240101,-1165.53,0.00016835,2]
[369998055,1751818240110,-460.0,0.00016836,2]
[369998056,1751818240119,-460.0,0.00016836,2]
[369998057,1751818240129,-460.0,0.00016836,2]
[369998058,1751818240138,-993.34677509,0.0001691,2]
[369998059,1751818240149,-1980.7418229,0.00016973,2]
[369998060,1751818240158,-597.04,0.00017,3]
[369998061,1751818240170,-163.97179551,0.00017008,2]
[369998062,1751818240179,-500.0,0.00017008,2]
[369998063,1751818240189,-500.0,0.00017008,2]
[369998064,1751818240198,-500.0,0.00017008,2]
[369998065,1751818240212,-500.0,0.00017008,2]
[369998066,1751818240222,-500.0,0.00017008,2]
[369998067,1751818240232,-500.0,0.00017008,2]
[369998068,1751818240241,-505.94641299,0.00017008,2]
[369998069,1751818240253,-500.0,0.00017008,2]
[369998070,1751818240263,-500.0,0.00017008,2]
[369998071,1751818240273,-500.0,0.00017008,2]
[369998072,1751818240285,-500.0,0.00017008,2]
[369998073,1751818240294,-500.0,0.00017008,2]
[369998074,1751818240305,-500.0,0.00017008,2]
[369998075,1751818240314,-500.0,0.00017008,2]
[369998076,1751818240324,-213.92725161,0.00017008,2]
[369998077,1751818240334,-500.0,0.00017008,2]
[369998078,1751818240343,-460.0,0.00017009,2]
[369998079,1751818240354,-460.0,0.00017009,2]
[369998080,1751818240363,-460.0,0.00017009,2]
[369998081,1751818240372,-1714.49,0.00017009,2]
[369998082,1751818240384,-808.43,0.00017009,2]
[369998083,1751818240393,-460.0,0.00017009,2]
[369998084,1751818240403,-610.98,0.00017009,2]
[369998085,1751818240413,-1196.02,0.00017009,2]
[369998086,1751818240423,-494.45,0.00017009,2]
[369998087,1751818240432,-460.0,0.00017009,2]
[369998088,1751818240442,-2286.25,0.00017009,2]
[369998089,1751818240452,-370000.0,0.0001701,2]
[369998090,1751818240462,-500.0,0.00017073,2]
[369998091,1751818240473,-500.0,0.00017073,2]
[369998092,1751818240482,-500.0,0.00017073,2]
[369998093,1751818240492,-317.30170587,0.00017073,2]
[369998094,1751818240501,-500.0,0.00017073,2]
[369998095,1751818240511,-500.0,0.00017073,2]
[369998096,1751818240520,-500.0,0.00017073,2]
[369998097,1751818240530,-500.0,0.00017073,2]
[369998098,1751818240540,-506.73534234,0.00017073,2]
[369998099,1751818240550,-593.61440722,0.00017073,2]
[369998100,1751818240559,-500.0,0.00017103,2]
[369998101,1751818240569,-460.0,0.00017106,2]
[369998102,1751818240578,-460.0,0.00017107,2]
[369998103,1751818240588,-2046.08,0.00017107,2]
[369998105,1751818240597,-2335.52,0.00017107,2]
[369998107,1751818240607,-460.0,0.00017107,2]
[369998108,1751818240616,-460.0,0.00017107,2]
[369998109,1751818240626,-460.0,0.00017107,2]
[369998110,1751818240636,-460.0,0.00017107,2]
[369998111,1751818240645,-1917.78,0.00017107,2]
[369998112,1751818240655,-2260.09,0.00017107,2]
[369998113,1751818240664,-460.0,0.00017107,2]
[369998114,1751818240675,-2383.69,0.00017107,2]
[369998115,1751818240684,-460.0,0.00017107,2]
[369998116,1751818240694,-460.0,0.00017107,2]
[369998117,1751818240703,-1158.0,0.00017107,2]
[369998118,1751818240713,-460.0,0.00017107,2]
[369998119,1751818240723,-1353.84,0.00017107,2]
[369998120,1751818240732,-460.0,0.00017107,2]
[369998121,1751818240742,-460.0,0.00017107,2]
[369998122,1751818240751,-460.0,0.00017107,2]
[369998123,1751818240761,-460.0,0.00017107,2]
[369998124,1751818240771,-1229.84,0.00017107,2]
[369998125,1751818240781,-460.0,0.00017107,2]
[369998126,1751818240790,-460.0,0.00017108,2]
[369998127,1751818240799,-653.43,0.00017108,2]
[369998128,1751818240809,-460.0,0.00017108,2]
[369998129,1751818240819,-460.0,0.00017108,2]
[369998130,1751818240828,-460.0,0.00017108,2]
[369998132,1751818240838,-460.0,0.00017108,2]
[369998134,1751818240847,-794.73,0.00017108,2]
[369998136,1751818240857,-460.0,0.00017108,2]
[369998138,1751818240866,-460.0,0.00017108,2]
[369998140,1751818240875,-460.0,0.00017108,2]
[369998142,1751818240885,-460.0,0.00017108,2]
[369998144,1751818240894,-460.0,0.00017108,2]
[369998146,1751818240903,-460.0,0.00017108,2]
[369998148,1751818240912,-460.0,0.00017108,2]
[369998150,1751818240922,-460.0,0.00017108,2]
[369998152,1751818240931,-460.0,0.00017108,2]
[369998154,1751818240940,-460.0,0.00017108,2]
[369998156,1751818240949,-460.0,0.00017108,2]
[369998158,1751818240959,-604.21,0.00017108,2]
[369998159,1751818240968,-460.0,0.00017108,2]
[369998162,1751818240978,-460.0,0.00017108,2]
[369998163,1751818240987,-460.0,0.00017108,2]
[369998165,1751818240997,-460.0,0.00017108,2]
[369998167,1751818241007,-391.87539649,0.00017108,2]
[369998169,1751818241016,-671.2,0.00017108,2]
[369998172,1751818241026,-460.0,0.00017108,2]
[369998173,1751818241035,-460.0,0.00017108,2]
[369998175,1751818241044,-460.0,0.00017108,2]
[369998177,1751818241054,-460.0,0.00017108,2]
[369998179,1751818241064,-2700.77,0.00017108,2]
[369998181,1751818241074,-460.0,0.00017108,2]
[369998183,1751818241084,-597.43,0.00017108,2]
[369998185,1751818241093,-460.0,0.00017108,2]
[369998187,1751818241102,-460.0,0.00017108,2]
[369998189,1751818241112,-691.73,0.00017108,2]
[369998191,1751818241121,-460.0,0.00017108,2]
[369998193,1751818241131,-536.54,0.00017108,2]
[369998195,1751818241140,-473.74,0.00017108,2]
[369998197,1751818241150,-460.0,0.00017109,2]
[369998199,1751818241159,-460.0,0.00017109,2]
[369998201,1751818241168,-460.0,0.00017109,2]
[369998202,1751818241178,-460.0,0.00017109,2]
[369998203,1751818241187,-639.53,0.00017109,2]
[369998204,1751818241196,-460.0,0.00017109,2]
[369998206,1751818241210,-611.51,0.00017109,2]
[369998207,1751818241220,-871.94,0.00017109,2]
[369998208,1751818241230,-464.47,0.00017109,2]
[369998209,1751818241239,-460.0,0.00017109,2]
[369998210,1751818241249,-672.91,0.00017109,2]
[369998211,1751818241259,-3370.47,0.00017109,2]
[369998212,1751818241269,-601.41,0.00017109,2]
[369998213,1751818241280,-864.26,0.00017109,2]
[369998214,1751818241291,-933.26,0.00017109,2]
[369998215,1751818241301,-1165.53,0.00017109,2]
[369998216,1751818241311,-584.23190981,0.0001711,2]
[369998217,1751818241321,-460.0,0.0001711,2]
[369998218,1751818241331,-460.0,0.00017283,2]
[369998219,1751818241340,-460.0,0.00017283,2]
[369998220,1751818241350,-1714.49,0.00017283,2]
[369998221,1751818241360,-808.43,0.00017283,2]
[369998222,1751818241369,-460.0,0.00017283,2]
[369998223,1751818241379,-610.98,0.00017283,2]
[369998224,1751818241596,-1196.02,0.00017283,2]
[369998225,1751818241606,-494.45,0.00017283,2]
[369998226,1751818241615,-2286.25,0.00017283,2]
[369998227,1751818241625,-460.0,0.0001738,2]
[369998228,1751818241634,-460.0,0.00017381,2]
[369998229,1751818241644,-2046.08,0.00017381,2]
[369998230,1751818241654,-2335.52,0.00017381,2]
[369998231,1751818241665,-460.0,0.00017381,2]
[369998232,1751818241674,-460.0,0.00017381,2]
[369998233,1751818241684,-460.0,0.00017381,2]
[369998234,1751818241694,-1917.78,0.00017381,2]
[369998235,1751818241704,-2260.09,0.00017381,2]
[369998236,1751818241713,-2383.69,0.00017381,2]
[369998237,1751818241723,-460.0,0.00017381,2]
[369998238,1751818241732,-460.0,0.00017381,2]
[369998239,1751818241742,-1158.0,0.00017381,2]
[369998240,1751818241751,-460.0,0.00017381,2]
[369998241,1751818241761,-1353.84,0.00017381,2]
[369998242,1751818241771,-460.0,0.00017381,2]
[369998243,1751818241781,-460.0,0.00017381,2]
[369998244,1751818241791,-460.0,0.00017381,2]
[369998245,1751818241801,-460.0,0.00017381,2]
[369998246,1751818241811,-1229.84,0.00017381,2]
[369998247,1751818241821,-460.0,0.00017381,2]
[369998248,1751818241831,-460.0,0.00017382,2]
[369998249,1751818241841,-653.43,0.00017382,2]
[369998250,1751818241851,-460.0,0.00017382,2]
[369998251,1751818241860,-460.0,0.00017382,2]
[369998252,1751818241871,-460.0,0.00017382,2]
[369998253,1751818241880,-460.0,0.00017382,2]
[369998254,1751818241890,-794.73,0.00017382,2]
[369998255,1751818241900,-460.0,0.00017382,2]
[369998256,1751818241909,-460.0,0.00017382,2]
[369998257,1751818241918,-460.0,0.00017382,2]
[369998258,1751818241928,-460.0,0.00017382,2]
[369998259,1751818241938,-460.0,0.00017382,2]
[369998260,1751818241948,-460.0,0.00017382,2]
[369998261,1751818241963,-460.0,0.00017382,2]
[369998262,1751818241972,-460.0,0.00017382,2]
[369998263,1751818241983,-460.0,0.00017382,2]
[369998264,1751818241995,-604.21,0.00017382,2]
[369998265,1751818242005,-460.0,0.00017382,2]
[369998266,1751818242015,-460.0,0.00017382,2]
[369998267,1751818242024,-460.0,0.00017382,2]
[369998268,1751818242034,-671.2,0.00017382,2]
[369998269,1751818242044,-460.0,0.00017382,2]
[369998270,1751818242054,-460.0,0.00017382,2]
[369998271,1751818242064,-460.0,0.00017382,2]
[369998272,1751818242074,-460.0,0.00017382,2]
[369998273,1751818242084,-2700.77,0.00017382,2]
[369998274,1751818242093,-460.0,0.00017382,2]
[369998275,1751818242103,-597.43,0.00017382,2]
[369998276,1751818242112,-460.0,0.00017382,2]
[369998277,1751818242122,-460.0,0.00017382,2]
[369998278,1751818242131,-691.73,0.00017382,2]
[369998279,1751818242140,-460.0,0.00017382,2]
[369998280,1751818242150,-536.54,0.00017382,2]
[369998281,1751818242160,-473.74,0.00017382,2]
[369998282,1751818242170,-460.0,0.00017383,2]
[369998283,1751818242179,-481.16,0.00017383,2]
[369998284,1751818242189,-460.0,0.00017383,2]
[369998285,1751818242199,-639.53,0.00017383,2]
[369998286,1751818242213,-460.0,0.00017383,2]
[369998287,1751818242222,-611.51,0.00017383,2]
[369998288,1751818242231,-871.94,0.00017383,2]
[369998289,1751818242241,-464.47,0.00017383,2]
[369998290,1751818242251,-460.0,0.00017383,2]
[369998291,1751818242261,-672.91,0.00017383,2]
[369998292,1751818242270,-3370.47,0.00017383,2]
[369998293,1751818242280,-601.41,0.00017383,2]
[369998294,1751818242290,-864.26,0.00017383,2]
[369998295,1751818242301,-933.26,0.00017383,2]
[369998296,1751818242311,-1165.53,0.00017383,2]
[369998297,1751818242320,-460.0,0.00017384,2]
[369998298,1751818242330,-460.0,0.00017557,2]
[369998299,1751818242340,-1714.49,0.00017557,2]
[369998300,1751818242350,-808.43,0.00017557,2]
[369998301,1751818242360,-460.0,0.00017557,2]
[369998302,1751818242370,-610.98,0.00017557,2]
[369998303,1751818242380,-1196.02,0.00017557,2]
[369998304,1751818242390,-494.45,0.00017557,2]
[369998305,1751818242399,-2286.25,0.00017557,2]
[369998306,1751818242409,-1980.7418229,0.00017571,2]
[369998307,1751818242419,-1005.94513548,0.00017621,2]
[369998308,1751818242429,-1000.0,0.00017621,2]
[369998309,1751818242439,-1000.0,0.00017621,2]
[369998310,1751818242448,-836.4326755,0.00017621,2]
[369998311,1751818242592,-500.0,0.00017621,2]
[369998312,1751818242603,-460.0,0.00017654,2]
[369998313,1751818242613,-460.0,0.00017655,2]
[369998314,1751818242623,-2046.08,0.00017655,2]
[369998315,1751818242632,-2335.52,0.00017655,2]
[369998316,1751818242642,-460.0,0.00017655,2]
[369998317,1751818242652,-460.0,0.00017655,2]
[369998318,1751818242661,-460.0,0.00017655,2]
[369998319,1751818242671,-1917.78,0.00017655,2]
[369998320,1751818242681,-2260.09,0.00017655,2]
[369998321,1751818242691,-2383.69,0.00017655,2]
[369998322,1751818242700,-460.0,0.00017655,2]
[369998323,1751818242710,-460.0,0.00017655,2]
[369998324,1751818242719,-1158.0,0.00017655,2]
[369998325,1751818242728,-460.0,0.00017655,2]
[369998326,1751818242738,-1353.84,0.00017655,2]
[369998327,1751818242748,-460.0,0.00017655,2]
[369998328,1751818242760,-460.0,0.00017655,2]
[369998329,1751818242769,-460.0,0.00017655,2]
[369998330,1751818242778,-460.0,0.00017655,2]
[369998331,1751818242788,-1229.84,0.00017655,2]
[369998332,1751818242797,-460.0,0.00017655,2]
[369998333,1751818242808,-8884.55239666,0.00017656,2]
[369998334,1751818242822,-33379.65591652,0.00017656,2]
[369998335,1751818242831,-653.43,0.00017656,2]
[369998336,1751818242841,-460.0,0.00017656,2]
[369998337,1751818242850,-460.0,0.00017656,2]
[369998338,1751818242861,-460.0,0.00017656,2]
[369998339,1751818242870,-460.0,0.00017656,2]
[369998340,1751818242880,-794.73,0.00017656,2]
[369998341,1751818242890,-507.81627196,0.00017656,2]
[369998342,1751818242899,-460.0,0.00017656,2]
[369998343,1751818242908,-518.76563548,0.00017656,2]
[369998344,1751818242918,-460.0,0.00017656,2]
[369998345,1751818242927,-460.0,0.00017656,2]
[369998346,1751818242936,-460.0,0.00017656,2]
[369998347,1751818242949,-460.0,0.00017656,2]
[369998348,1751818242958,-604.21,0.00017656,2]
[369998349,1751818242968,-460.0,0.00017656,2]
[369998350,1751818242977,-460.0,0.00017656,2]
[369998351,1751818242987,-671.2,0.00017656,2]
[369998352,1751818242996,-460.0,0.00017656,2]
[369998353,1751818243006,-460.0,0.00017656,2]
[369998354,1751818243015,-460.0,0.00017656,2]
[369998355,1751818243024,-460.0,0.00017656,2]
[369998356,1751818243033,-2700.77,0.00017656,2]
[369998357,1751818243043,-460.0,0.00017656,2]
[369998358,1751818243053,-597.43,0.00017656,2]
[369998359,1751818243063,-691.73,0.00017656,2]
[369998360,1751818243074,-460.0,0.00017656,2]
[369998361,1751818243084,-536.54,0.00017656,2]
[369998362,1751818243094,-473.74,0.00017656,2]
[369998363,1751818243103,-460.0,0.00017657,2]
[369998364,1751818243112,-460.0,0.00017657,2]
[369998365,1751818243122,-639.53,0.00017657,2]
[369998366,1751818243131,-460.0,0.00017657,2]
[369998367,1751818243141,-611.51,0.00017657,2]
[369998368,1751818243150,-871.94,0.00017657,2]
[369998369,1751818243160,-464.47,0.00017657,2]
[369998370,1751818243170,-460.0,0.00017657,2]
[369998371,1751818243179,-672.91,0.00017657,2]
[369998372,1751818243189,-3370.47,0.00017657,2]
[369998373,1751818243199,-601.41,0.00017657,2]
[369998374,1751818243211,-864.26,0.00017657,2]
[369998375,1751818243221,-933.26,0.00017657,2]
[369998376,1751818243231,-1165.53,0.00017657,2]
[369998377,1751818243241,-503.43673046,0.00017659,2]
[369998378,1751818243250,-190.63004398,0.00017659,2]
[369998379,1751818243260,-500.0,0.00017659,2]
[369998382,1751818243270,-460.0,0.00017831,2]
[369998383,1751818243279,-1714.49,0.00017831,2]
[369998385,1751818243288,-808.43,0.00017831,2]
[369998387,1751818243298,-460.0,0.00017831,2]
[369998390,1751818243310,-610.98,0.00017831,2]
[369998392,1751818243319,-1196.02,0.00017831,2]
[369998394,1751818243329,-494.45,0.00017831,2]
[369998395,1751818243339,-2286.25,0.00017831,2]
[369998397,1751818243349,-460.0,0.00017928,2]
[369998399,1751818243359,-460.0,0.00017929,2]
[369998401,1751818243368,-2046.08,0.00017929,2]
[369998404,1751818243378,-2335.52,0.00017929,2]
[369998406,1751818243388,-460.0,0.00017929,2]
[369998408,1751818243398,-460.0,0.00017929,2]
[369998410,1751818243407,-1917.78,0.00017929,2]
[369998412,1751818243417,-2260.09,0.00017929,2]
[369998414,1751818243427,-2383.69,0.00017929,2]
[369998416,1751818243436,-460.0,0.00017929,2]
[369998418,1751818243446,-460.0,0.00017929,2]
[369998420,1751818243455,-1158.0,0.00017929,2]
[369998421,1751818243465,-460.0,0.00017929,2]
[369998423,1751818243474,-1353.84,0.00017929,2]
[369998425,1751818243483,-460.0,0.00017929,2]
[369998427,1751818243493,-460.0,0.00017929,2]
[369998429,1751818243505,-460.0,0.00017929,2]
[369998431,1751818243515,-460.0,0.00017929,2]
[369998433,1751818243524,-1229.84,0.00017929,2]
[369998435,1751818243535,-460.0,0.00017929,2]
[369998437,1751818243544,-653.43,0.0001793,2]
[369998439,1751818243553,-460.0,0.0001793,2]
[369998441,1751818243564,-460.0,0.0001793,2]
[369998443,1751818243573,-460.0,0.0001793,2]
[369998445,1751818243583,-264.1,0.0001793,2]
[369998447,1751818243593,-794.73,0.0001793,2]
[369998449,1751818243602,-568.96,0.0001793,2]
[369998451,1751818243611,-460.0,0.0001793,2]
[369998453,1751818243621,-354.71,0.0001793,2]
[369998455,1751818243630,-460.0,0.0001793,2]
[369998457,1751818243639,-460.0,0.0001793,2]
[369998459,1751818243649,-604.21,0.0001793,2]
[369998461,1751818243658,-460.0,0.0001793,2]
[369998463,1751818243668,-460.0,0.0001793,2]
[369998465,1751818243677,-671.2,0.0001793,2]
[369998466,1751818243686,-580.96316303,0.0001793,2]
[369998468,1751818243696,-460.0,0.0001793,2]
[369998470,1751818243705,-460.0,0.0001793,2]
[369998472,1751818243715,-2700.77,0.0001793,2]
[369998474,1751818243724,-460.0,0.0001793,2]
[369998476,1751818243734,-597.43,0.0001793,2]
[369998478,1751818243745,-691.73,0.0001793,2]
[369998480,1751818243754,-460.0,0.0001793,2]
[369998482,1751818243764,-536.54,0.0001793,2]
[369998483,1751818243773,-473.74,0.0001793,2]
[369998485,1751818243782,-460.0,0.00017931,2]
[369998488,1751818243792,-639.53,0.00017931,2]
[369998491,1751818243801,-460.0,0.00017931,2]
[369998494,1751818243810,-611.51,0.00017931,2]
[369998496,1751818243820,-871.94,0.00017931,2]
[369998497,1751818243829,-464.47,0.00017931,2]
[369998499,1751818243839,-460.0,0.00017931,2]
[369998501,1751818243848,-672.91,0.00017931,2]
[369998503,1751818243858,-3370.47,0.00017931,2]
[369998505,1751818243869,-601.41,0.00017931,2]
[369998507,1751818243879,-864.26,0.00017931,2]